bitfinex-derivatives/quotes_ETHF0:USTF0_20251103
["timestamp","ask_amount","ask_price","bid_price","bid_amount"]
[1762170161015,0.14141603,3710.5,3710.4,12.64896609]
[1762170161016,0.85960603,3710.5,3710.4,12.64896609]
[1762170161313,0.85960603,3710.5,3710.4,3.20996609]
[1762170161617,8.85960603,3710.5,3710.4,12.64796609]
[1762170162511,0.85960603,3710.5,3710.4,12.64796609]
[1762170166116,8.85960603,3710.5,3710.4,9.44016609]
[1762170166313,8.85960603,3710.5,3710.4,8.54603461]
[1762170166623,9.12814295,3710.5,3710.4,8.54603461]
[1762170166920,9.12814295,3710.5,3710.4,7.81963461]
[1762170167220,9.12814295,3710.5,3710.4,0.00306959]
[1762170172413,9.12814295,3710.5,3710.4,9.66006959]
[1762170172414,0.75714295,3710.5,3710.4,9.66006959]
[1762170173125,0.48860603,3710.5,3710.4,9.66006959]
[1762170173525,0.48860603,3710.5,3710.4,12.86786959]
[1762170174119,0.00341603,3710.5,3710.4,13.35307959]
[1762170174319,0.48860603,3710.5,3710.4,13.35307959]
[1762170174715,0.48860603,3710.5,3710.4,12.86786959]
[1762170176218,0.00341603,3710.5,3710.4,13.35307959]
[1762170176419,0.48860603,3710.5,3710.4,13.35307959]
[1762170177327,0.48860603,3710.5,3710.4,12.86786959]
[1762170177821,0.00341603,3710.5,3710.4,13.35307959]
[1762170178025,0.48860603,3710.5,3710.4,13.35307959]
[1762170179225,0.48860603,3710.5,3710.4,12.86786959]
[1762170180122,0.48860603,3710.5,3710.4,13.35307959]
[1762170180525,0.48860603,3710.5,3710.4,12.86786959]
[1762170181223,0.72350603,3710.5,3710.4,12.86786959]
[1762170181431,1.1297884,3710.5,3710.4,9.43706959]
[1762170185616,1.1297884,3710.5,3710.4,0.00306959]
[1762170185817,9.00137899,3710.5,3709.7,1.44276197]
[1762170186031,3.92799,3709.8,3709.7,1.44276197]
[1762170186222,0.48534,3709.4,3709.3,0.2377]
[1762170186527,0.7575057,3709.4,3709.3,0.2377]
[1762170186828,0.7575057,3709.4,3709.3,0.24051389]
[1762170187241,0.48534,3709.4,3709.3,0.24051389]
[1762170187530,0.75731455,3709.4,3709.3,0.24051389]
[1762170187823,0.48534,3709.4,3709.3,0.24051389]
[1762170188024,0.75732384,3709.4,3709.3,0.24051389]
[1762170188227,0.99222384,3709.4,3709.3,0.00281389]
[1762170193322,0.75732384,3709.4,3709.3,0.24051389]
[1762170193522,3.3441,3710.0,3709.7,0.2377]
[1762170193725,3.3441,3710.0,3709.5,0.378]
[1762170193726,0.48531,3709.6,3709.5,0.378]
[1762170194130,3.2078,3710.0,3709.9,0.2377]
[1762170194327,3.96476081,3710.0,3709.9,0.2377]
[1762170194931,4.19966081,3710.0,3709.9,0.2377]
[1762170195434,3.47950081,3710.0,3709.7,0.2377]
[1762170195629,0.48528,3709.8,3709.7,0.2377]
[1762170196839,1.21303,3710.4,3710.0,0.1403]
[1762170197026,0.4853,3709.7,3709.6,3.93081]
[1762170197228,0.4853,3709.7,3709.6,3.4455]
[1762170197930,0.7202,3709.7,3709.6,3.4455]
[1762170198535,0.4853,3709.7,3709.6,3.4455]
[1762170203838,1.21302,3710.4,3709.8,0.2377]
[1762170204140,0.48527,3709.9,3709.8,0.2377]
[1762170204441,1.21302,3710.4,3710.0,0.1403]
[1762170204638,0.48524,3710.1,3710.0,0.378]
[1762170207536,0.72014,3710.1,3710.0,0.3811]
[1762170208740,0.48524,3710.1,3710.0,0.3811]
[1762170209341,0.70854,3710.1,3710.0,0.3811]
[1762170209944,0.48524,3710.1,3710.0,0.3811]
[1762170214939,0.70854,3710.1,3710.0,0.1434]
[1762170215245,0.7086,3709.7,3709.6,3.2078]
[1762170215542,0.7086,3709.7,3709.6,3.44]
[1762170215741,0.48532,3709.5,3709.4,9.6602]
[1762170216141,0.48532,3709.5,3709.4,11.10296197]
[1762170216942,0.48532,3709.5,3709.4,9.6602]
[1762170217744,4.42078,3710.6,3709.5,0.1434]
[1762170217939,0.48526,3710.0,3709.9,0.48527]
[1762170218140,0.00341603,3710.5,3710.2,0.2322]
[1762170218336,0.48522,3710.3,3710.2,0.2322]
[1762170218542,0.75884936,3710.3,3710.2,0.2322]
[1762170218743,0.75884936,3710.3,3710.2,9.6602]
[1762170219639,0.98214936,3710.3,3710.2,9.6602]
[1762170219843,0.27362936,3710.3,3710.2,10.14543]
[1762170220045,0.00341603,3710.5,3710.4,0.71741]
[1762170222050,0.48860603,3710.5,3710.4,0.2322]
[1762170222549,0.48860603,3710.5,3710.4,0.71741]
[1762170223055,0.00341603,3710.5,3710.4,0.71741]
[1762170223550,0.48860603,3710.5,3710.4,0.71741]
[1762170223850,0.00341603,3710.5,3710.4,10.14341]
[1762170224047,0.00341603,3710.5,3710.4,11.58693127]
[1762170224245,0.00341603,3710.5,3710.4,10.14341]
[1762170224447,0.48860603,3710.5,3710.4,11.10172127]
[1762170224954,0.48860603,3710.5,3710.4,11.58693127]
[1762170225146,0.00341603,3710.5,3710.4,11.58693127]
[1762170225345,0.00341603,3710.5,3710.4,10.14341]
[1762170227357,0.00341603,3710.5,3710.4,11.58435791]
[1762170229057,0.48860603,3710.5,3710.4,11.09914791]
[1762170229557,0.48860603,3710.5,3710.4,10.14341]
[1762170234960,0.00341603,3710.5,3710.4,10.14341]
[1762170235158,0.00341603,3710.5,3710.4,11.58435791]
[1762170237761,0.48860603,3710.5,3710.4,11.58435791]
[1762170239062,0.00341603,3710.5,3710.4,11.58435791]
[1762170239769,0.00341603,3710.5,3710.4,14.79215791]
[1762170240457,0.48504,3711.7,3711.6,0.2341]
[1762170240658,0.75848565,3711.7,3711.6,9.6561]
[1762170241563,0.76173296,3711.7,3711.6,9.6561]
[1762170241764,0.27669296,3711.7,3711.6,10.14115]
[1762170241956,0.76173296,3711.7,3711.6,9.6561]
[1762170242152,0.00324731,3711.7,3711.6,10.14115]
[1762170243862,3.69273,3712.5,3712.4,0.2341]
[1762170244062,3.96587231,3712.5,3712.4,9.6551]
[1762170244258,4.18427231,3712.5,3712.4,9.421]
[1762170244460,4.24047231,3712.5,3712.4,9.421]
[1762170244660,4.18427231,3712.5,3712.4,9.6551]
[1762170244856,0.97941205,3712.5,3712.4,9.65764374]
[1762170246067,0.76101205,3712.5,3712.4,9.65764374]
[1762170246462,0.76101205,3712.5,3712.4,12.86544374]
[1762170247564,0.27608205,3712.5,3712.4,12.86544374]
[1762170247767,0.00293974,3712.5,3712.4,12.86544374]
[1762170248469,0.00293974,3712.5,3712.4,13.35038374]
[1762170248774,0.48786974,3712.5,3712.4,12.86544374]
[1762170249267,0.70626974,3712.5,3712.4,3.44444374]
[1762170249572,0.76246974,3712.5,3712.4,7.07154374]
[1762170249775,15.77257859,3712.5,3712.4,0.00254374]
[1762170250072,0.70345,3711.6,3711.5,3.2078]
[1762170251166,0.48505,3711.6,3711.5,3.57872989]
[1762170253174,1.21255,3711.9,3711.5,3.57872989]
[1762170253175,0.1298,3712.0,3711.5,3.57872989]
[1762170253372,0.27580122,3711.9,3711.5,3.57872989]
[1762170253573,0.1298,3712.0,3711.5,3.57872989]
[1762170253771,0.27579706,3711.9,3711.5,3.57872989]
[1762170253969,0.70345,3711.6,3711.5,0.00202989]
[1762170255576,0.48505,3711.6,3711.5,0.37092989]
[1762170255876,0.48503,3711.8,3711.7,0.2341]
[1762170256076,0.48503,3711.8,3711.7,9.6521]
[1762170256374,0.70343,3711.8,3711.7,9.418]
[1762170256972,0.9792903,3711.8,3711.7,9.418]
[1762170257378,0.70345,3711.6,3711.5,0.00202989]
[1762170260181,0.70345,3711.6,3711.5,0.37092989]
[1762170260772,0.48505,3711.6,3711.5,0.37092989]
[1762170261678,0.48505,3711.6,3711.5,3.57872989]
[1762170261882,0.70345,3711.6,3711.5,3.57872989]
[1762170262079,0.70345,3711.6,3711.5,0.00202989]
[1762170262584,0.48505,3711.6,3711.5,0.37092989]
[1762170262773,0.48505,3711.6,3711.5,3.57872989]
[1762170262978,0.70345,3711.6,3711.5,3.57872989]
[1762170264081,0.70345,3711.6,3711.5,0.00202989]
[1762170264278,0.97961467,3711.6,3711.5,0.00202989]
[1762170264480,0.2184,3710.2,3710.1,1.43697138]
[1762170264680,0.2184,3710.2,3709.7,3.2078]
[1762170264681,0.48525,3710.1,3710.0,2.85845012]
[1762170264983,0.48525,3710.1,3710.0,0.3689]
[1762170265184,0.48525,3710.1,3710.0,2.85845012]
[1762170265578,0.48525,3710.1,3710.0,2.86193108]
[1762170267479,0.70365,3710.1,3710.0,2.86193108]
[1762170268788,0.48525,3710.1,3710.0,2.86193108]
[1762170271384,0.48523,3710.2,3710.1,0.2393]
[1762170271584,0.48523,3710.2,3710.1,2.72885012]
[1762170271883,3.69301,3710.4,3710.3,0.2393]
[1762170272281,3.69301,3710.4,3710.3,2.72885012]
[1762170272681,3.69301,3710.4,3710.3,0.2393]
[1762170272882,0.48519,3710.5,3710.4,0.2393]
[1762170273087,0.48519,3710.5,3710.4,9.6833]
[1762170273287,0.48519,3710.5,3710.4,12.17285012]
[1762170274089,0.1393,3711.0,3710.5,0.1384]
[1762170274289,0.48518,3710.6,3710.5,0.3777]
[1762170274689,0.48518,3710.6,3710.5,2.86725012]
[1762170275193,1.21279,3711.1,3710.6,0.2393]
[1762170275385,0.48517,3710.7,3710.6,0.2393]
[1762170275586,0.48517,3710.7,3710.6,9.6813]
[1762170275786,0.48517,3710.7,3710.6,12.17085012]
[1762170277292,3.6929,3711.2,3711.1,0.2393]
[1762170277489,3.6929,3711.2,3711.1,9.6873]
[1762170277689,3.6929,3711.2,3711.1,12.17685012]
[1762170278487,3.2078,3712.2,3711.5,0.2393]
[1762170278703,3.2078,3712.2,3712.0,0.3777]
[1762170278989,3.69277,3712.2,3712.1,12.17685012]
[1762170279395,3.92837,3712.2,3712.1,9.448]
[1762170279793,3.92837,3712.2,3712.1,9.6873]
[1762170280891,4.20401675,3712.2,3712.1,9.448]
[1762170281097,0.48505,3711.6,3711.5,3.5855]
[1762170281297,0.48505,3711.6,3711.5,15.53105012]
[1762170284702,0.48505,3711.6,3711.5,12.32225012]
[1762170287004,3.2078,3711.8,3711.7,0.2393]
[1762170287303,3.69282,3711.8,3711.7,0.2393]
[1762170287501,3.69282,3711.8,3711.7,2.72885012]
[1762170288906,0.48502,3711.8,3711.7,2.72885012]
[1762170298714,3.69278,3712.1,3712.0,0.3772]
[1762170299009,3.69278,3712.1,3712.0,2.86675012]
[1762170299212,3.69278,3712.1,3712.0,0.3772]
[1762170299513,3.69278,3712.1,3712.0,2.86675012]
[1762170300010,0.48501,3711.9,3711.8,9.431]
[1762170300211,0.48501,3711.9,3711.8,9.6598]
[1762170300413,0.48501,3711.9,3711.8,12.14935012]
[1762170301119,0.48499,3712.0,3711.8,11.92055012]
[1762170301317,0.48499,3712.0,3711.9,0.2288]
[1762170301520,0.48499,3712.0,3711.9,2.71835012]
[1762170304119,3.69278,3712.1,3712.0,0.3717]
[1762170304311,0.76115842,3712.1,3712.0,2.86125012]
[1762170306516,0.00293974,3712.5,3712.4,0.2288]
[1762170306717,0.27948545,3712.5,3712.4,15.83709012]
[1762170307024,0.48486,3713.0,3712.9,0.2288]
[1762170307218,0.48486,3713.0,3712.9,9.6568]
[1762170307422,0.48486,3713.0,3712.9,12.14635012]
[1762170307922,0.70615698,3713.0,3712.9,12.14959402]
[1762170308121,0.84765698,3713.0,3712.9,12.14959402]
[1762170309021,0.70615698,3713.0,3712.9,12.14959402]
[1762170309220,0.48705698,3713.0,3712.9,12.14959402]
[1762170310324,0.84765698,3713.0,3712.9,12.14959402]
[1762170310518,0.84765698,3713.0,3712.9,11.92079402]
[1762170311317,0.84765698,3713.0,3712.9,2.72159402]
[1762170311522,0.84765698,3713.0,3712.9,12.14459402]
[1762170313427,0.70615698,3713.0,3712.9,12.14459402]
[1762170313831,0.48705698,3713.0,3712.9,15.35239402]
[1762170314418,0.00219698,3713.0,3712.9,15.35239402]
[1762170314625,1.43715794,3714.8,3714.4,0.2288]
[1762170314822,1.43715794,3714.8,3714.0,0.1384]
[1762170314823,0.50965,3714.7,3714.6,0.2288]
[1762170315028,0.50965,3714.7,3714.6,0.6768]
[1762170315225,0.50965,3714.7,3714.6,3.16635012]
[1762170315629,0.51230731,3714.7,3714.6,3.16635012]
[1762170316024,0.02765731,3714.7,3714.6,3.16635012]
[1762170316437,0.48457,3715.3,3715.0,0.2604]
[1762170316636,0.70367,3715.3,3715.2,2.71835012]
[1762170316934,0.2191,3715.2,3715.1,11.92755012]
[1762170317324,0.22238039,3715.2,3715.1,12.15635012]
[1762170317525,0.22238039,3715.2,3715.1,12.15535012]
[1762170317728,0.2191,3715.1,3715.0,2.48955012]
[1762170317930,0.48462,3714.9,3714.5,3.3507]
[1762170318125,0.48463,3714.8,3714.7,0.2288]
[1762170318327,0.48459,3715.1,3714.6,6.95]
[1762170318528,0.48785039,3715.2,3715.1,0.2288]
[1762170318725,0.48785039,3715.2,3715.1,9.6648]
[1762170318927,0.48785039,3715.2,3715.1,12.15435012]
[1762170318928,0.70695039,3715.2,3715.1,12.15435012]
[1762170319128,0.70695039,3715.2,3715.1,9.436]
[1762170319327,0.48465,3714.6,3714.5,0.2288]
[1762170319532,0.48471,3714.1,3714.0,3.575]
[1762170319732,0.48471,3714.1,3714.0,13.009]
[1762170319932,0.48471,3714.1,3714.0,15.49855012]
[1762170320134,0.48471,3714.1,3714.0,6.06455012]
[1762170320432,0.48471,3714.1,3714.0,15.49755012]
[1762170323242,0.48469,3714.3,3714.2,0.2288]
[1762170323740,0.48469,3714.3,3714.2,2.71835012]
[1762170325046,0.48469,3714.3,3714.2,2.97425012]
[1762170325238,0.48469,3714.3,3714.2,2.72085012]
[1762170329336,4.41937,3714.8,3714.3,0.2313]
[1762170329537,3.2078,3714.8,3714.7,0.2259]
[1762170329744,3.2078,3714.8,3714.7,12.13545012]
[1762170329745,0.48462,3714.8,3714.7,12.13545012]
[1762170332739,0.70942,3714.8,3714.7,0.2259]
[1762170332937,0.48466,3714.5,3714.4,3.4337]
[1762170333142,0.48466,3714.5,3714.4,7.9307]
[1762170333342,0.48466,3714.5,3714.4,10.42025012]
[1762170333642,0.85306,3714.5,3714.4,7.21245012]
[1762170333843,0.70946,3714.5,3714.4,7.21245012]
[1762170334049,0.48466,3714.5,3714.4,7.21245012]
[1762170334349,0.48466,3714.5,3714.4,12.14345012]
[1762170334741,0.48466,3714.5,3714.4,2.71545012]
[1762170334937,0.48466,3714.5,3714.4,12.14245012]
[1762170335746,0.48465,3714.6,3714.5,0.52276]
[1762170335952,0.48465,3714.6,3714.5,0.264]
[1762170336141,3.69238,3715.1,3715.0,0.2259]
[1762170336341,3.9547811,3715.1,3715.0,12.14145012]
[1762170337248,0.48465,3714.6,3714.5,0.2259]
[1762170337449,3.69245,3714.6,3714.5,9.6509]
[1762170337647,3.69245,3714.6,3714.5,12.14045012]
[1762170337850,3.69245,3714.6,3714.5,12.19015012]
[1762170339557,3.6924,3715.0,3714.9,0.2259]
[1762170339748,3.6924,3715.0,3714.9,9.6489]
[1762170339948,3.6924,3715.0,3714.9,12.13845012]
[1762170340148,3.95513105,3715.0,3714.9,12.13845012]
[1762170341456,3.95513105,3715.0,3714.9,12.13645012]
[1762170342248,3.95513105,3715.0,3714.9,12.13545012]
[1762170344258,4.547277,3715.0,3714.9,12.13545012]
[1762170348362,0.48465,3714.6,3714.5,0.2182]
[1762170348556,0.48465,3714.6,3714.1,0.2182]
[1762170348557,0.4847,3714.2,3714.1,0.2182]
[1762170348751,0.74743105,3714.2,3714.1,12.12275012]
[1762170349363,0.26273105,3714.2,3714.1,12.12275012]
[1762170349662,0.48469,3714.3,3714.2,0.2182]
[1762170349865,0.48469,3714.3,3714.2,2.70775012]
[1762170349866,0.74847102,3714.3,3714.2,2.70775012]
[1762170352764,0.00328039,3715.2,3715.1,0.2182]
[1762170353063,0.00328039,3715.2,3715.1,9.6312]
[1762170353263,3.2078,3715.4,3715.1,12.12075012]
[1762170353458,0.48449,3715.9,3715.8,0.2182]
[1762170353658,1.43715794,3717.2,3717.1,0.2182]
[1762170353854,0.59175695,3717.2,3717.1,7.8062]
[1762170354060,0.1378,3718.5,3717.1,48.388]
[1762170354361,0.48418,3718.3,3718.1,3.2078]
[1762170354663,0.2384,3718.2,3718.1,3.2078]
[1762170354864,2.25343219,3718.2,3718.1,3.2078]
[1762170355071,2.25343219,3718.2,3717.5,6.5338]
[1762170355072,0.72266,3717.6,3717.5,6.5338]
[1762170355458,2.73769219,3717.6,3717.5,6.5338]
[1762170356171,2.73769219,3717.6,3717.5,3.2078]
[1762170357865,0.74981,3717.2,3717.1,0.00342724]
[1762170358065,2.76484219,3717.2,3717.1,0.00342724]
[1762170359068,2.76484219,3717.2,3717.1,7.24e-06]
[1762170359261,9.49044219,3717.2,3717.1,7.24e-06]
[1762170360869,2.76484219,3717.2,3717.1,7.24e-06]
[1762170361266,9.49044219,3717.2,3717.1,7.24e-06]
[1762170362377,0.2655,3716.4,3716.3,8.7377501]
[1762170362574,0.75001,3715.7,3715.6,3.2078]
[1762170362872,0.1578,3714.5,3714.4,3.2078]
[1762170363264,0.16021333,3714.5,3714.4,5.2249987]
[1762170366275,0.00241333,3714.5,3714.4,5.2249987]
[1762170369882,0.48708333,3714.5,3714.4,5.2249987]
[1762170370180,0.64488333,3714.5,3714.4,5.2249987]
[1762170370382,0.64488333,3714.5,3714.4,13.5379987]
[1762170370675,0.91038333,3714.5,3714.4,13.5379987]
[1762170371068,0.91038333,3714.5,3714.4,0.00217375]
[1762170372478,0.48472,3714.1,3714.0,3.2078]
[1762170372672,0.48472,3714.1,3713.0,2.63297039]
[1762170372673,0.2655,3712.6,3712.5,3.2078]
[1762170372876,1.21233,3712.5,3711.0,0.1485]
[1762170373181,3.2078,3711.1,3711.0,0.2734]
[1762170373374,3.2078,3711.9,3711.8,0.2734]
[1762170373574,3.20977526,3711.9,3711.8,3.03719178]
[1762170373773,3.20977526,3711.9,3711.8,5.05221673]
[1762170373973,3.20977526,3711.9,3711.8,2.29121673]
[1762170376277,3.20977526,3711.9,3711.8,11.90321673]
[1762170376482,0.00197526,3711.9,3711.8,11.90321673]
[1762170378884,3.2078,3712.4,3712.3,0.2734]
[1762170379085,3.2078,3712.4,3712.3,9.8764]
[1762170379284,3.2078,3712.4,3712.3,11.89142495]
[1762170379784,3.21013239,3712.4,3712.3,11.89142495]
[1762170380887,3.2078,3712.8,3712.7,0.2734]
[1762170381080,3.2078,3712.8,3712.7,9.8734]
[1762170381286,3.2078,3712.8,3712.7,11.88842495]
[1762170381786,3.21123305,3712.8,3712.7,11.88842495]
[1762170382592,3.21123305,3712.8,3712.7,11.89442495]
[1762170383293,3.21123305,3712.8,3712.7,2.28842495]
[1762170383488,3.21123305,3712.8,3712.7,11.89742495]
[1762170383885,0.00343305,3712.8,3712.7,11.89742495]
[1762170384289,3.305e-05,3712.8,3712.7,11.89742495]
[1762170386088,3.305e-05,3712.8,3712.7,2.28842495]
[1762170386491,3.20783305,3712.8,3712.7,2.28842495]
[1762170386689,3.305e-05,3712.8,3712.7,11.62102495]
[1762170386885,3.305e-05,3712.8,3712.7,12.10592495]
[1762170387796,0.4848,3713.6,3713.5,0.9331]
[1762170387997,0.4848,3713.6,3713.5,10.5461]
[1762170388191,0.4848,3713.6,3713.5,12.56112495]
[1762170388594,3.2078,3713.7,3713.6,0.5892]
[1762170388791,3.21003231,3713.7,3713.6,2.60422495]
[1762170388991,3.21003231,3713.7,3713.6,12.22022495]
[1762170389497,3.69480231,3713.7,3713.6,2.60422495]
[1762170389701,3.69480231,3713.7,3713.6,12.21822495]
[1762170389999,3.69480231,3713.7,3713.6,12.21722495]
[1762170390893,3.21003231,3713.7,3713.6,12.21722495]
[1762170391296,3.69480231,3713.7,3713.6,12.21722495]
[1762170393298,3.21003231,3713.7,3713.6,12.21722495]
[1762170393800,3.69480231,3713.7,3713.6,12.21722495]
[1762170394704,3.69480231,3713.7,3713.6,11.61802495]
[1762170394998,3.69480231,3713.7,3713.6,12.20722495]
[1762170397300,0.6245,3713.1,3712.2,3.3563]
[1762170397602,0.4849,3712.7,3712.6,10.1792]
[1762170397802,0.4849,3712.7,3712.6,0.5892]
[1762170397998,0.4849,3712.7,3712.6,11.44248495]
[1762170398396,3.2078,3713.3,3713.0,0.3439]
[1762170398698,3.21003231,3713.7,3713.1,10.68504]
[1762170398892,0.74099286,3713.6,3713.5,0.9331]
[1762170399095,0.48479,3713.6,3713.5,10.5441]
[1762170399296,0.48479,3713.6,3713.5,11.78438495]
[1762170401398,0.48479,3713.6,3713.5,11.19518495]
[1762170401799,1.10929,3713.6,3713.5,11.19518495]
[1762170402000,0.48479,3713.6,3713.5,11.19518495]
[1762170402202,0.48479,3713.6,3713.5,11.78438495]
[1762170403203,0.74149656,3713.6,3713.5,11.78438495]
[1762170404104,0.74149656,3713.6,3713.5,11.19518495]
[1762170404300,0.48485,3713.1,3713.0,0.9331]
[1762170404500,0.48485,3713.1,3713.0,11.77038495]
[1762170404903,0.48485,3713.1,3713.0,2.17338495]
[1762170405098,3.2078,3713.4,3713.0,11.77438495]
[1762170405408,3.69261,3713.4,3713.3,1.82948495]
[1762170405610,3.94947697,3713.4,3713.3,11.43548495]
[1762170406303,3.94947697,3713.4,3713.3,1.82948495]
[1762170406510,3.94947697,3713.4,3713.3,11.43548495]
[1762170407102,3.94947697,3713.4,3713.3,1.82948495]
[1762170407306,3.94947697,3713.4,3713.3,11.44148495]
[1762170409111,3.46466697,3713.4,3713.3,11.92630495]
[1762170409311,0.25686697,3713.4,3713.3,11.92630495]
[1762170409713,0.74167697,3713.4,3713.3,11.92630495]
[1762170409917,0.74167697,3713.4,3713.3,11.44148495]
[1762170411014,0.25686697,3713.4,3713.3,11.91830495]
[1762170411212,0.74167697,3713.4,3713.3,11.43348495]
[1762170411608,0.74167697,3713.4,3713.3,11.91830495]
[1762170411913,0.74167697,3713.4,3713.3,2.31430495]
[1762170412115,0.74167697,3713.4,3713.3,11.43048495]
[1762170412414,0.74167697,3713.4,3713.3,11.42748495]
[1762170413208,0.74167697,3713.4,3713.3,11.91230495]
[1762170413407,3.231e-05,3713.7,3713.6,1.07398]
[1762170413611,3.2078,3714.3,3713.6,1.07398]
[1762170413612,0.48473,3714.0,3713.9,0.5892]
[1762170413811,4.41955,3714.3,3714.1,1.07392]
[1762170413812,3.2078,3714.3,3714.1,1.07392]
[1762170414016,0.48469,3714.3,3714.2,11.91219495]
[1762170414510,0.48670277,3714.3,3714.2,11.91219495]
[1762170414707,0.00201277,3714.3,3714.2,11.91219495]
[1762170414914,0.48670277,3714.3,3714.2,11.91219495]
[1762170415313,0.00201277,3714.3,3714.2,11.91219495]
[1762170415610,0.48670277,3714.3,3714.2,11.42748495]
[1762170415812,0.48670277,3714.3,3714.2,1.82948495]
[1762170416012,0.48670277,3714.3,3714.2,24.35448495]
[1762170416213,0.00201277,3714.3,3714.2,24.83919495]
[1762170416714,0.48670277,3714.3,3714.2,24.83919495]
[1762170417109,0.48670277,3714.3,3714.2,24.83619495]
[1762170417420,0.00201277,3714.3,3714.2,24.83619495]
[1762170417618,0.48670277,3714.3,3714.2,24.35148495]
[1762170417816,0.48670277,3714.3,3714.2,24.83619495]
[1762170418420,0.00201277,3714.3,3714.2,24.83619495]
[1762170419214,0.48670277,3714.3,3714.2,24.35148495]
[1762170419810,0.48670277,3714.3,3714.2,24.83619495]
[1762170420013,0.00201277,3714.3,3714.2,24.83619495]
[1762170420815,0.00201277,3714.3,3714.2,2.31419495]
[1762170421018,0.00201277,3714.3,3714.2,11.89719495]
[1762170422316,0.00201277,3714.3,3714.2,2.31419495]
[1762170422518,0.00201277,3714.3,3714.2,11.89219495]
[1762170423421,0.61521277,3714.3,3714.2,1.24028495]
[1762170423617,1.21177,3714.2,3713.4,1.43093685]
[1762170423927,0.48484,3713.2,3713.1,3.8202]
[1762170424221,0.48484,3713.2,3713.1,13.3942]
[1762170424519,0.48484,3713.2,3713.1,5.06048495]
[1762170424722,2.42398,3713.6,3713.0,0.3439]
[1762170424723,1.09805,3713.1,3713.0,1.58418495]
[1762170425024,0.48492,3712.6,3712.5,0.3663]
[1762170425217,0.48491,3712.7,3712.6,0.6124]
[1762170425723,0.48491,3712.7,3712.6,11.42468495]
[1762170426316,0.48491,3712.7,3712.6,1.85268495]
[1762170426522,0.48493,3712.5,3712.3,8.55891424]
[1762170426822,0.6132,3712.4,3712.0,0.3589]
[1762170427018,0.6132,3712.4,3712.2,1.24028495]
[1762170427220,0.6132,3712.3,3712.2,1.24028495]
[1762170427519,0.48498,3712.1,3712.0,0.9713]
[1762170427718,1.09821,3711.9,3711.8,0.00279178]
[1762170427918,1.09821,3711.9,3711.8,9.57479178]
[1762170428120,1.09821,3711.9,3711.8,0.00279178]
[1762170428326,1.09821,3711.9,3711.8,9.57879178]
[1762170428719,1.35619748,3711.9,3711.8,0.00279178]
[1762170428923,1.35619748,3711.9,3711.1,0.6124]
[1762170428924,0.48511,3711.2,3711.1,0.6124]
[1762170429125,0.48511,3711.2,3711.1,11.42668495]
[1762170429627,0.48506,3711.5,3711.2,0.6124]
[1762170429819,0.48508,3711.4,3711.3,0.6124]
[1762170430324,0.6132,3711.3,3711.2,0.00192662]
[1762170430525,0.48508,3711.4,3711.2,10.81321157]
[1762170430720,0.48508,3711.4,3711.3,1.85268495]
[1762170430928,0.48508,3711.4,3711.3,10.1824]
[1762170432719,0.0025726,3711.5,3711.4,0.6124]
[1762170432930,0.0025726,3711.5,3711.4,1.85268495]
[1762170433327,0.0025726,3711.5,3711.4,5.06048495]
[1762170433530,3.69277,3712.2,3712.1,0.6124]
[1762170433724,3.69277,3712.2,3712.1,10.1834]
[1762170433924,3.69277,3712.2,3712.1,11.42368495]
[1762170434730,3.21014538,3712.2,3712.1,11.42368495]
[1762170435229,3.69511538,3712.2,3712.1,11.42368495]
[1762170439128,0.00234538,3712.2,3712.1,11.90866495]
[1762170439825,3.2078,3712.6,3712.5,0.9713]
[1762170439826,3.69272,3712.6,3712.5,0.9713]
[1762170440027,0.4849,3712.8,3712.6,0.48491]
[1762170440231,0.4849,3712.8,3712.7,1.85268495]
[1762170440824,0.48835695,3712.8,3712.7,1.85268495]
[1762170441924,0.48495,3712.3,3712.2,0.6124]
[1762170442233,0.48494,3712.5,3712.4,0.6124]
[1762170442633,0.48494,3712.5,3712.4,1.85268495]
[1762170442832,0.48494,3712.5,3712.4,11.40968495]
[1762170443032,1.09814,3712.5,3712.4,11.40968495]
[1762170443233,1.09814,3712.5,3712.4,1.85268495]
[1762170443433,0.48498,3712.1,3712.0,0.9713]
[1762170443833,0.48498,3712.1,3712.0,2.21158495]
[1762170444136,3.821,3712.6,3712.5,0.9713]
[1762170444325,3.821,3712.6,3712.5,10.5253]
[1762170444524,3.69271,3712.6,3712.5,2.21158495]
[1762170444731,3.2078,3712.6,3712.5,11.76558495]
[1762170445027,0.00345695,3712.8,3712.5,12.25049495]
[1762170445226,0.00345695,3712.8,3712.7,1.85268495]
[1762170445435,0.48834695,3712.8,3712.7,1.85268495]
[1762170446837,0.00345695,3712.8,3712.7,1.85268495]
[1762170447040,0.48834695,3712.8,3712.7,1.85268495]
[1762170448738,0.48834695,3712.8,3712.7,11.40268495]
[1762170449740,0.48834695,3712.8,3712.7,1.85268495]
[1762170450034,0.48498,3712.1,3712.0,0.3589]
[1762170450229,1.21229,3712.6,3712.3,0.4926]
[1762170450230,3.69274,3712.4,3712.3,0.4926]
[1762170450435,0.48494,3712.4,3712.3,0.4926]
[1762170450738,0.48834695,3712.8,3712.7,0.4926]
[1762170450939,0.48834695,3712.8,3712.7,10.0376]
[1762170451138,0.48834695,3712.8,3712.7,11.27788495]
[1762170451940,0.48834695,3712.8,3712.7,1.73288495]
[1762170452137,0.48834695,3712.8,3712.7,11.27988495]
[1762170452337,0.48834695,3712.8,3712.7,11.27588495]
[1762170453136,0.74653175,3712.8,3712.7,11.27588495]
[1762170453336,0.48834695,3712.8,3712.7,11.27588495]
[1762170454036,3.2078,3713.7,3713.2,0.48483]
[1762170454343,2.68027,3714.5,3714.0,0.8025]
[1762170454344,3.2078,3714.1,3714.0,0.8025]
[1762170454545,3.69252,3714.1,3714.0,10.3485]
[1762170454746,3.95061572,3714.1,3714.0,11.58878495]
[1762170455040,3.95285928,3714.1,3714.0,11.59095995]
[1762170455641,3.95285928,3714.1,3714.0,11.58995995]
[1762170456040,3.95285928,3714.1,3714.0,11.58795995]
[1762170456343,3.69476356,3714.1,3714.0,11.58795995]
[1762170456540,3.69476356,3714.1,3714.0,2.04495995]
[1762170456739,3.69476356,3714.1,3714.0,7.71395995]
[1762170457532,0.00224356,3714.1,3714.0,8.19868995]
[1762170457732,4.356e-05,3714.1,3714.0,8.19868995]
[1762170458436,0.48462,3714.9,3714.8,0.4926]
[1762170458641,3.2078,3715.0,3714.9,0.4926]